[Event "Titled Tuesday Blitz May 25 2021"]
[White "Corrales Jimenez, Fidel"]
[Black "Villegas, Pierre"]
[WhiteFideId "3506690"]
[BlackFideId "654183"]
[WhiteElo "2555"]
[BlackElo "2411"]
[Result "1-0"]
[Round "04"]
[TimeControl "180+1"]
[Date "2021.05.25"]
[WhiteClock "0:00:19"]
[BlackClock "0:00:11"]

1. e4 {[%clk 0:02:50]}  c6 {[%clk 0:02:58]} 2. d4 {[%clk 0:02:00]}  d5 {[%clk 0:02:55]} 3. e5 {[%clk 0:02:00]}  Bf5 {[%clk 0:02:54]} 4. h4 {[%clk 0:02:00]}  h5 {[%clk 0:02:54]} 5. c4 {[%clk 0:01:57]}  e6 {[%clk 0:02:53]} 6. Nc3 {[%clk 0:01:58]}  Ne7 {[%clk 0:02:53]} 7. Bg5 {[%clk 0:01:54]}  Qb6 {[%clk 0:02:50]} 8. Qd2 {[%clk 0:01:54]}  Nd7 {[%clk 0:02:49]} 9. c5 {[%clk 0:01:52]}  Qc7 {[%clk 0:02:48]} 10. b4 {[%clk 0:01:52]}  f6 {[%clk 0:02:46]} 11. exf6 {[%clk 0:01:49]}  gxf6 {[%clk 0:02:47]} 12. Be3 {[%clk 0:01:50]}  e5 {[%clk 0:02:39]} 13. Nge2 {[%clk 0:01:44]}  Bg4 {[%clk 0:02:28]} 14. Ng3 {[%clk 0:01:42]}  f5 {[%clk 0:02:04]} 15. dxe5 {[%clk 0:01:37]}  Qxe5 {[%clk 0:02:01]} 16. Be2 {[%clk 0:01:34]}  Bg7 {[%clk 0:01:59]} 17. O-O {[%clk 0:00:38]}  Qxc3 {[%clk 0:01:50]} 18. f3 {[%clk 0:00:29]}  Qxd2 {[%clk 0:01:43]} 19. Bxd2 {[%clk 0:00:30]}  Bxa1 {[%clk 0:01:43]} 20. Rxa1 {[%clk 0:00:31]}  f4 {[%clk 0:01:39]} 21. Bxf4 {[%clk 0:00:31]}  Be6 {[%clk 0:01:39]} 22. Re1 {[%clk 0:00:30]}  Kf7 {[%clk 0:01:33]} 23. Bd1 {[%clk 0:00:19]}  Rae8 {[%clk 0:01:27]} 24. Ne2 {[%clk 0:00:17]}  Nf5 {[%clk 0:01:22]} 25. g3 {[%clk 0:00:18]}  Rhg8 {[%clk 0:01:18]} 26. Kf2 {[%clk 0:00:18]}  Nf6 {[%clk 0:01:16]} 27. Bg5 {[%clk 0:00:18]}  Nh7 {[%clk 0:01:03]} 28. Bc1 {[%clk 0:00:18]}  Bd7 {[%clk 0:01:02]} 29. Rg1 {[%clk 0:00:18]}  Nf6 {[%clk 0:00:55]} 30. Nf4 {[%clk 0:00:18]}  Re7 {[%clk 0:00:47]} 31. Bc2 {[%clk 0:00:18]}  Rge8 {[%clk 0:00:47]} 32. Bb2 {[%clk 0:00:17]}  d4 {[%clk 0:00:44]} 33. Bb3+ {[%clk 0:00:16]}  Kg7 {[%clk 0:00:45]} 34. g4 {[%clk 0:00:16]}  hxg4 {[%clk 0:00:43]} 35. fxg4 {[%clk 0:00:17]}  Nxh4 {[%clk 0:00:33]} 36. Bxd4 {[%clk 0:00:17]}  Rf8 {[%clk 0:00:26]} 37. g5 {[%clk 0:00:17]}  Re4 {[%clk 0:00:20]} 38. gxf6+ {[%clk 0:00:17]}  Kh7 {[%clk 0:00:20]} 39. Bc2 {[%clk 0:00:16]}  Bf5 {[%clk 0:00:13]} 40. Bxe4 {[%clk 0:00:17]}  Bxe4 {[%clk 0:00:14]} 41. Rg7+ {[%clk 0:00:18]}  Kh6 {[%clk 0:00:14]} 42. Ne6 {[%clk 0:00:18]}  Re8 {[%clk 0:00:12]} 43. Be3+ {[%clk 0:00:19]}  Kh5 {[%clk 0:00:11]} 44. Rg5+ {[%clk 0:00:19]}  Kh6 {[%clk 0:00:11]} 45. Rg4+ {[%clk 0:00:19]}  Kh5 {[%clk 0:00:11]} 46. Rxe4 {[%clk 0:00:19]} 1-0


[Site "https://www.chess.com"]

[Event "Titled Tuesday Blitz May 25 2021"]
[White "Cruz, Jonathan"]
[Black "Ognean, Mihnea-Ionut"]
[WhiteFideId "3802124"]
[BlackFideId "1232347"]
[WhiteElo "2381"]
[BlackElo "2012"]
[Result "0-1"]
[Round "04"]
[TimeControl "180+1"]
[Date "2021.05.25"]
[WhiteClock "0:00:08"]
[BlackClock "0:00:16"]

1. Nf3 {[%clk 0:02:59]}  c5 {[%clk 0:02:58]} 2. e3 {[%clk 0:02:52]}  Nc6 {[%clk 0:02:57]} 3. d4 {[%clk 0:02:53]}  d5 {[%clk 0:02:46]} 4. h3 {[%clk 0:02:53]}  Nf6 {[%clk 0:02:45]} 5. c4 {[%clk 0:02:53]}  e6 {[%clk 0:02:42]} 6. Nc3 {[%clk 0:02:53]}  a6 {[%clk 0:02:42]} 7. cxd5 {[%clk 0:02:50]}  exd5 {[%clk 0:02:42]} 8. Be2 {[%clk 0:02:50]}  Bd6 {[%clk 0:02:40]} 9. dxc5 {[%clk 0:02:50]}  Bxc5 {[%clk 0:02:41]} 10. O-O {[%clk 0:02:46]}  O-O {[%clk 0:02:41]} 11. Nd4 {[%clk 0:02:40]}  Re8 {[%clk 0:02:20]} 12. Nxc6 {[%clk 0:02:37]}  bxc6 {[%clk 0:02:20]} 13. b3 {[%clk 0:02:37]}  Qd6 {[%clk 0:02:15]} 14. Bb2 {[%clk 0:02:35]}  Ba7 {[%clk 0:02:15]} 15. Bg4 {[%clk 0:01:06]}  Nxg4 {[%clk 0:01:55]} 16. hxg4 {[%clk 0:01:07]}  Bd7 {[%clk 0:01:56]} 17. Qf3 {[%clk 0:01:00]}  Re6 {[%clk 0:01:55]} 18. Ne2 {[%clk 0:00:59]}  Rg6 {[%clk 0:01:49]} 19. Qf4 {[%clk 0:00:59]}  Qxf4 {[%clk 0:01:47]} 20. Nxf4 {[%clk 0:01:00]}  Rxg4 {[%clk 0:01:47]} 21. Rac1 {[%clk 0:00:56]}  f6 {[%clk 0:01:43]} 22. Rfd1 {[%clk 0:00:52]}  Kf7 {[%clk 0:01:39]} 23. Bd4 {[%clk 0:00:51]}  Bxd4 {[%clk 0:01:34]} 24. Rxd4 {[%clk 0:00:52]}  g5 {[%clk 0:01:34]} 25. Ne2 {[%clk 0:00:50]}  Rxd4 {[%clk 0:01:29]} 26. Nxd4 {[%clk 0:00:51]}  Rc8 {[%clk 0:01:28]} 27. Rc5 {[%clk 0:00:51]}  h5 {[%clk 0:01:26]} 28. b4 {[%clk 0:00:50]}  Ke7 {[%clk 0:01:24]} 29. a3 {[%clk 0:00:47]}  h4 {[%clk 0:01:21]} 30. Ra5 {[%clk 0:00:42]}  Ra8 {[%clk 0:01:11]} 31. a4 {[%clk 0:00:40]}  Rb8 {[%clk 0:01:07]} 32. Rxa6 {[%clk 0:00:25]}  Rxb4 {[%clk 0:01:07]} 33. Nxc6+ {[%clk 0:00:24]}  Bxc6 {[%clk 0:01:07]} 34. Rxc6 {[%clk 0:00:25]}  Rxa4 {[%clk 0:01:07]} 35. Kh2 {[%clk 0:00:25]}  Ra2 {[%clk 0:01:06]} 36. f3 {[%clk 0:00:20]}  Re2 {[%clk 0:01:04]} 37. Rc3 {[%clk 0:00:20]}  Ke6 {[%clk 0:01:03]} 38. Kg1 {[%clk 0:00:20]}  Ke5 {[%clk 0:00:59]} 39. Kf1 {[%clk 0:00:21]}  Ra2 {[%clk 0:00:59]} 40. Kg1 {[%clk 0:00:22]}  f5 {[%clk 0:00:58]} 41. Kh2 {[%clk 0:00:21]}  g4 {[%clk 0:00:58]} 42. fxg4 {[%clk 0:00:21]}  fxg4 {[%clk 0:00:58]} 43. Rd3 {[%clk 0:00:21]}  h3 {[%clk 0:00:54]} 44. Kh1 {[%clk 0:00:20]}  Rxg2 {[%clk 0:00:53]} 45. e4 {[%clk 0:00:21]}  d4 {[%clk 0:00:18]} 46. Rxh3 {[%clk 0:00:16]}  Re2 {[%clk 0:00:16]} 47. Rh4 {[%clk 0:00:10]}  Rxe4 {[%clk 0:00:16]} 48. Kg2 {[%clk 0:00:09]}  d3 {[%clk 0:00:16]} 49. Rh8 {[%clk 0:00:07]}  d2 {[%clk 0:00:16]} 50. Re8+ {[%clk 0:00:07]}  Kd4 {[%clk 0:00:15]} 51. Rd8+ {[%clk 0:00:08]}  Ke3 {[%clk 0:00:15]} 52. Rxd2 {[%clk 0:00:07]}  Kxd2 {[%clk 0:00:15]} 53. Kg3 {[%clk 0:00:08]}  Ke3 {[%clk 0:00:16]} 0-1


[Site "https://www.chess.com"]

[Event "Titled Tuesday Blitz May 25 2021"]
[White "David, Alexandru-Vasile"]
[Black "Davtyan, David Arm."]
[WhiteFideId "1223453"]
[BlackFideId "13310046"]
[WhiteElo "2404"]
[BlackElo "2028"]
[Result "1-0"]
[Round "04"]
[TimeControl "180+1"]
[Date "2021.05.25"]
[WhiteClock "0:00:06"]
[BlackClock "0:00:01"]

1. d4 {[%clk 0:03:00]}  Nf6 {[%clk 0:03:00]} 2. c4 {[%clk 0:03:01]}  g6 {[%clk 0:03:00]} 3. Nc3 {[%clk 0:03:01]}  d5 {[%clk 0:03:00]} 4. cxd5 {[%clk 0:03:02]}  Nxd5 {[%clk 0:03:01]} 5. e4 {[%clk 0:03:03]}  Nxc3 {[%clk 0:03:02]} 6. bxc3 {[%clk 0:03:04]}  Bg7 {[%clk 0:03:03]} 7. Nf3 {[%clk 0:03:04]}  O-O {[%clk 0:03:04]} 8. Be2 {[%clk 0:03:00]}  c5 {[%clk 0:03:04]} 9. O-O {[%clk 0:03:00]}  Nc6 {[%clk 0:03:04]} 10. d5 {[%clk 0:02:59]}  Ne5 {[%clk 0:03:04]} 11. Nxe5 {[%clk 0:02:56]}  Bxe5 {[%clk 0:03:05]} 12. Qd2 {[%clk 0:02:54]}  e6 {[%clk 0:02:44]} 13. f4 {[%clk 0:02:53]}  Bg7 {[%clk 0:02:45]} 14. d6 {[%clk 0:02:46]}  b6 {[%clk 0:02:23]} 15. Bc4 {[%clk 0:02:06]}  Qd7 {[%clk 0:02:11]} 16. Qd3 {[%clk 0:02:03]}  a6 {[%clk 0:02:07]} 17. a4 {[%clk 0:02:03]}  Bb7 {[%clk 0:02:03]} 18. Rb1 {[%clk 0:01:56]}  Qc6 {[%clk 0:01:56]} 19. Re1 {[%clk 0:01:46]}  Rfd8 {[%clk 0:01:53]} 20. Qc2 {[%clk 0:01:34]}  Rxd6 {[%clk 0:01:52]} 21. e5 {[%clk 0:01:29]}  Rdd8 {[%clk 0:01:50]} 22. Be3 {[%clk 0:01:25]}  Qc7 {[%clk 0:01:42]} 23. Qb2 {[%clk 0:01:19]}  Qc6 {[%clk 0:01:31]} 24. Bf1 {[%clk 0:01:16]}  Qxa4 {[%clk 0:01:22]} 25. Qxb6 {[%clk 0:01:15]}  Be4 {[%clk 0:01:20]} 26. Ra1 {[%clk 0:01:11]}  Qc6 {[%clk 0:01:10]} 27. Qxc5 {[%clk 0:01:04]}  Qxc5 {[%clk 0:00:58]} 28. Bxc5 {[%clk 0:01:03]}  Bd3 {[%clk 0:00:59]} 29. Bxd3 {[%clk 0:00:56]}  Rxd3 {[%clk 0:01:00]} 30. Bd4 {[%clk 0:00:57]}  Bf8 {[%clk 0:00:56]} 31. Re2 {[%clk 0:00:52]}  a5 {[%clk 0:00:46]} 32. Kf2 {[%clk 0:00:43]}  Rc8 {[%clk 0:00:13]} 33. g3 {[%clk 0:00:31]}  Bc5 {[%clk 0:00:11]} 34. Rxa5 {[%clk 0:00:17]}  Bxd4+ {[%clk 0:00:08]} 35. cxd4 {[%clk 0:00:18]}  Rxd4 {[%clk 0:00:09]} 36. Kf3 {[%clk 0:00:19]}  Rc3+ {[%clk 0:00:08]} 37. Kg4 {[%clk 0:00:19]}  Kg7 {[%clk 0:00:07]} 38. Ra7 {[%clk 0:00:19]}  Rc8 {[%clk 0:00:03]} 39. Rb2 {[%clk 0:00:18]}  Rf8 {[%clk 0:00:04]} 40. Rbb7 {[%clk 0:00:18]}  Rc4 {[%clk 0:00:03]} 41. Re7 {[%clk 0:00:18]}  h5+ {[%clk 0:00:03]} 42. Kh4 {[%clk 0:00:18]}  Rc2 {[%clk 0:00:03]} 43. Rxe6 {[%clk 0:00:10]}  Rxh2+ {[%clk 0:00:03]} 44. Kg5 {[%clk 0:00:11]}  Rh3 {[%clk 0:00:04]} 45. Rxg6+ {[%clk 0:00:11]}  Kh7 {[%clk 0:00:03]} 46. Rh6+ {[%clk 0:00:08]}  Kg7 {[%clk 0:00:03]} 47. Rxh5 {[%clk 0:00:08]}  Rxg3+ {[%clk 0:00:03]} 48. Kf5 {[%clk 0:00:09]}  Rb3 {[%clk 0:00:03]} 49. Rg5+ {[%clk 0:00:09]}  Kh7 {[%clk 0:00:03]} 50. Ra2 {[%clk 0:00:07]}  Rh3 {[%clk 0:00:03]} 51. Kf6 {[%clk 0:00:07]}  Rh4 {[%clk 0:00:03]} 52. f5 {[%clk 0:00:07]}  Rh6+ {[%clk 0:00:02]} 53. Ke7 {[%clk 0:00:07]}  Rb8 {[%clk 0:00:02]} 54. Ra7 {[%clk 0:00:06]}  Rb5 {[%clk 0:00:02]} 55. f6 {[%clk 0:00:06]}  Rg6 {[%clk 0:00:01]} 56. Rh5+ {[%clk 0:00:06]}  Rh6 {[%clk 0:00:01]} 57. Rxh6+ {[%clk 0:00:06]} 1-0


[Site "https://www.chess.com"]

[Event "Titled Tuesday Blitz May 25 2021"]
[White "Diaz Camallonga, Carles"]
[Black "Odinaev, Timur"]
[WhiteFideId "22235256"]
[BlackFideId "4163770"]
[WhiteElo "2438"]
[BlackElo "2306"]
[Result "1-0"]
[Round "04"]
[TimeControl "180+1"]
[Date "2021.05.25"]
[WhiteClock "0:00:12"]
[BlackClock "0:00:06"]

1. e4 {[%clk 0:03:00]}  g6 {[%clk 0:02:58]} 2. d4 {[%clk 0:03:00]}  Bg7 {[%clk 0:02:58]} 3. Nf3 {[%clk 0:03:01]}  d6 {[%clk 0:02:58]} 4. Bc4 {[%clk 0:03:01]}  e6 {[%clk 0:02:57]} 5. O-O {[%clk 0:03:00]}  Ne7 {[%clk 0:02:54]} 6. Re1 {[%clk 0:03:00]}  a6 {[%clk 0:02:54]} 7. a4 {[%clk 0:02:59]}  b6 {[%clk 0:02:54]} 8. Nbd2 {[%clk 0:02:59]}  Nd7 {[%clk 0:02:52]} 9. Nf1 {[%clk 0:02:59]}  h6 {[%clk 0:02:52]} 10. Ng3 {[%clk 0:02:59]}  Bb7 {[%clk 0:02:39]} 11. h3 {[%clk 0:02:55]}  Kf8 {[%clk 0:02:36]} 12. Be3 {[%clk 0:02:52]}  d5 {[%clk 0:02:30]} 13. Bd3 {[%clk 0:02:50]}  Nf6 {[%clk 0:02:27]} 14. e5 {[%clk 0:02:47]}  Ne4 {[%clk 0:02:21]} 15. Bxe4 {[%clk 0:02:28]}  dxe4 {[%clk 0:02:22]} 16. Nd2 {[%clk 0:02:29]}  Nf5 {[%clk 0:02:06]} 17. Ndxe4 {[%clk 0:02:20]}  Nxg3 {[%clk 0:02:05]} 18. Nxg3 {[%clk 0:02:20]}  Qd5 {[%clk 0:02:05]} 19. f3 {[%clk 0:02:18]}  Rd8 {[%clk 0:02:05]} 20. Qe2 {[%clk 0:02:15]}  h5 {[%clk 0:01:50]} 21. Rad1 {[%clk 0:02:04]}  Qd7 {[%clk 0:01:48]} 22. b3 {[%clk 0:02:02]}  h4 {[%clk 0:01:48]} 23. Ne4 {[%clk 0:02:01]}  Bxe4 {[%clk 0:01:42]} 24. fxe4 {[%clk 0:02:02]}  Kg8 {[%clk 0:01:39]} 25. Bg5 {[%clk 0:01:59]}  Rc8 {[%clk 0:01:36]} 26. Rf1 {[%clk 0:01:57]}  Rh5 {[%clk 0:01:33]} 27. Bf6 {[%clk 0:01:49]}  Bxf6 {[%clk 0:01:29]} 28. Rxf6 {[%clk 0:01:50]}  Rd8 {[%clk 0:01:25]} 29. Rd3 {[%clk 0:01:47]}  Qe7 {[%clk 0:01:17]} 30. c3 {[%clk 0:01:33]}  c5 {[%clk 0:01:09]} 31. Rdf3 {[%clk 0:01:16]}  Rh7 {[%clk 0:01:00]} 32. Qxa6 {[%clk 0:00:57]}  cxd4 {[%clk 0:00:58]} 33. cxd4 {[%clk 0:00:57]}  Rxd4 {[%clk 0:00:58]} 34. Qxb6 {[%clk 0:00:54]}  Rb4 {[%clk 0:00:21]} 35. Qd6 {[%clk 0:00:48]}  Qa7+ {[%clk 0:00:17]} 36. Kh2 {[%clk 0:00:47]}  Rb8 {[%clk 0:00:11]} 37. b4 {[%clk 0:00:32]}  Rc8 {[%clk 0:00:10]} 38. a5 {[%clk 0:00:31]}  Qb7 {[%clk 0:00:10]} 39. R6f4 {[%clk 0:00:18]}  Qb5 {[%clk 0:00:08]} 40. Qe7 {[%clk 0:00:16]}  Rf8 {[%clk 0:00:07]} 41. Rf6 {[%clk 0:00:14]}  Qxe5+ {[%clk 0:00:07]} 42. Kh1 {[%clk 0:00:13]}  Qxe4 {[%clk 0:00:06]} 43. R6f4 {[%clk 0:00:11]}  Qe1+ {[%clk 0:00:06]} 44. Rf1 {[%clk 0:00:11]}  Qe5 {[%clk 0:00:07]} 45. a6 {[%clk 0:00:11]}  Qb5 {[%clk 0:00:05]} 46. a7 {[%clk 0:00:10]}  Qa6 {[%clk 0:00:05]} 47. Rf6 {[%clk 0:00:09]}  Qc8 {[%clk 0:00:03]} 48. Rxg6+ {[%clk 0:00:08]}  fxg6 {[%clk 0:00:03]} 49. Rxf8+ {[%clk 0:00:07]}  Qxf8 {[%clk 0:00:03]} 50. Qxf8+ {[%clk 0:00:08]}  Kxf8 {[%clk 0:00:03]} 51. a8=Q+ {[%clk 0:00:09]}  Kg7 {[%clk 0:00:03]} 52. Qb7+ {[%clk 0:00:09]}  Kh6 {[%clk 0:00:04]} 53. Qxh7+ {[%clk 0:00:09]}  Kxh7 {[%clk 0:00:03]} 54. b5 {[%clk 0:00:10]}  e5 {[%clk 0:00:03]} 55. b6 {[%clk 0:00:10]}  e4 {[%clk 0:00:04]} 56. b7 {[%clk 0:00:10]}  e3 {[%clk 0:00:05]} 57. b8=Q {[%clk 0:00:11]}  e2 {[%clk 0:00:06]} 58. Qb1 {[%clk 0:00:12]} 1-0


[Site "https://www.chess.com"]

[Event "Titled Tuesday Blitz May 25 2021"]
[White "Djordjevic, Vuk"]
[Black "Eynullayev, Atilla"]
[WhiteFideId "902098"]
[BlackFideId "13413570"]
[WhiteElo "2463"]
[BlackElo "1997"]
[Result "1-0"]
[Round "04"]
[TimeControl "180+1"]
[Date "2021.05.25"]
[WhiteClock "0:00:17"]
[BlackClock "0:00:01"]

1. d4 {[%clk 0:03:00]}  Nf6 {[%clk 0:02:59]} 2. Bg5 {[%clk 0:03:01]}  e6 {[%clk 0:02:59]} 3. e4 {[%clk 0:03:01]}  h6 {[%clk 0:02:59]} 4. Bxf6 {[%clk 0:03:00]}  Qxf6 {[%clk 0:03:00]} 5. c3 {[%clk 0:03:01]}  d6 {[%clk 0:03:00]} 6. Bd3 {[%clk 0:03:02]}  a6 {[%clk 0:02:58]} 7. Ne2 {[%clk 0:03:02]}  e5 {[%clk 0:02:40]} 8. O-O {[%clk 0:03:01]}  g5 {[%clk 0:02:40]} 9. Ng3 {[%clk 0:02:46]}  Nc6 {[%clk 0:02:30]} 10. d5 {[%clk 0:02:43]}  Ne7 {[%clk 0:02:25]} 11. Nh5 {[%clk 0:02:19]}  Qg6 {[%clk 0:02:24]} 12. Nd2 {[%clk 0:02:17]}  g4 {[%clk 0:02:17]} 13. Ng3 {[%clk 0:02:11]}  h5 {[%clk 0:02:16]} 14. Qc2 {[%clk 0:01:25]}  Bh6 {[%clk 0:01:59]} 15. Rad1 {[%clk 0:01:16]}  Kf8 {[%clk 0:01:16]} 16. Nc4 {[%clk 0:01:10]}  h4 {[%clk 0:01:09]} 17. Nf5 {[%clk 0:01:09]}  Bxf5 {[%clk 0:01:02]} 18. exf5 {[%clk 0:01:08]}  Qf6 {[%clk 0:00:56]} 19. Be4 {[%clk 0:00:52]}  Kg7 {[%clk 0:00:49]} 20. Qe2 {[%clk 0:00:46]}  Kh7 {[%clk 0:00:21]} 21. Qxg4 {[%clk 0:00:43]}  Rag8 {[%clk 0:00:22]} 22. Qf3 {[%clk 0:00:40]}  b5 {[%clk 0:00:19]} 23. Ne3 {[%clk 0:00:37]}  Bxe3 {[%clk 0:00:20]} 24. fxe3 {[%clk 0:00:35]}  Rg5 {[%clk 0:00:20]} 25. Qh3 {[%clk 0:00:35]}  Kg7 {[%clk 0:00:16]} 26. Rc1 {[%clk 0:00:34]}  Kf8 {[%clk 0:00:15]} 27. c4 {[%clk 0:00:34]}  b4 {[%clk 0:00:15]} 28. c5 {[%clk 0:00:26]}  dxc5 {[%clk 0:00:04]} 29. Rxc5 {[%clk 0:00:27]}  Qb6 {[%clk 0:00:02]} 30. Rfc1 {[%clk 0:00:26]}  Rhg8 {[%clk 0:00:01]} 31. Qf3 {[%clk 0:00:17]} 1-0


[Site "https://www.chess.com"]

[Event "Titled Tuesday Blitz May 25 2021"]
[White "Drygalov, Sergey"]
[Black "Shapkin, Anatoliy"]
[WhiteFideId "24171743"]
[BlackFideId "34108332"]
[WhiteElo "2538"]
[BlackElo "2223"]
[Result "0-1"]
[Round "04"]
[TimeControl "180+1"]
[Date "2021.05.25"]
[WhiteClock "0:00:05"]
[BlackClock "0:00:21"]

1. e4 {[%clk 0:03:00]}  e5 {[%clk 0:03:00]} 2. Nf3 {[%clk 0:03:00]}  Nc6 {[%clk 0:03:00]} 3. Bb5 {[%clk 0:03:01]}  Nf6 {[%clk 0:03:01]} 4. d3 {[%clk 0:02:59]}  Bc5 {[%clk 0:03:01]} 5. O-O {[%clk 0:02:59]}  d6 {[%clk 0:03:01]} 6. c3 {[%clk 0:02:58]}  O-O {[%clk 0:03:02]} 7. Nbd2 {[%clk 0:02:56]}  Ne7 {[%clk 0:03:02]} 8. a4 {[%clk 0:02:48]}  c6 {[%clk 0:02:59]} 9. Bc4 {[%clk 0:02:47]}  Bb6 {[%clk 0:02:57]} 10. h3 {[%clk 0:02:32]}  Ng6 {[%clk 0:02:57]} 11. Re1 {[%clk 0:02:32]}  d5 {[%clk 0:02:49]} 12. exd5 {[%clk 0:02:20]}  cxd5 {[%clk 0:02:50]} 13. Bb3 {[%clk 0:02:20]}  Re8 {[%clk 0:02:46]} 14. Nf1 {[%clk 0:02:19]}  h6 {[%clk 0:02:45]} 15. Ng3 {[%clk 0:02:14]}  Bc7 {[%clk 0:02:44]} 16. Be3 {[%clk 0:01:54]}  Be6 {[%clk 0:02:44]} 17. Bc2 {[%clk 0:01:25]}  Qd7 {[%clk 0:02:36]} 18. Qd2 {[%clk 0:01:18]}  a5 {[%clk 0:02:35]} 19. d4 {[%clk 0:01:17]}  e4 {[%clk 0:02:32]} 20. Nh2 {[%clk 0:01:17]}  Bxh3 {[%clk 0:02:25]} 21. gxh3 {[%clk 0:01:09]}  Qxh3 {[%clk 0:02:24]} 22. Qe2 {[%clk 0:01:09]}  Nh4 {[%clk 0:01:42]} 23. Qf1 {[%clk 0:01:09]}  Qe6 {[%clk 0:01:43]} 24. Bd1 {[%clk 0:01:07]}  h5 {[%clk 0:01:25]} 25. Bg5 {[%clk 0:01:02]}  Nf5 {[%clk 0:01:12]} 26. Bxf6 {[%clk 0:00:42]}  Qxf6 {[%clk 0:00:48]} 27. Nxh5 {[%clk 0:00:41]}  Qh4 {[%clk 0:00:38]} 28. Qg2 {[%clk 0:00:36]}  e3 {[%clk 0:00:38]} 29. Rf1 {[%clk 0:00:14]}  e2 {[%clk 0:00:38]} 30. Bxe2 {[%clk 0:00:09]}  Rxe2 {[%clk 0:00:39]} 31. Nxg7 {[%clk 0:00:05]}  Qxh2+ {[%clk 0:00:36]} 32. Qxh2 {[%clk 0:00:05]}  Bxh2+ {[%clk 0:00:37]} 33. Kxh2 {[%clk 0:00:05]}  Nxg7 {[%clk 0:00:38]} 34. Rab1 {[%clk 0:00:04]}  Rc8 {[%clk 0:00:32]} 35. Kg2 {[%clk 0:00:04]}  Ne6 {[%clk 0:00:30]} 36. Kf3 {[%clk 0:00:04]}  Re4 {[%clk 0:00:27]} 37. Rg1+ {[%clk 0:00:02]}  Kf8 {[%clk 0:00:28]} 38. Rbe1 {[%clk 0:00:02]}  Rxe1 {[%clk 0:00:26]} 39. Rxe1 {[%clk 0:00:03]}  Rc4 {[%clk 0:00:26]} 40. Re5 {[%clk 0:00:03]}  Nc7 {[%clk 0:00:24]} 41. Rh5 {[%clk 0:00:03]}  Rxa4 {[%clk 0:00:24]} 42. Rh8+ {[%clk 0:00:04]}  Ke7 {[%clk 0:00:23]} 43. Rb8 {[%clk 0:00:05]}  b5 {[%clk 0:00:24]} 44. Rb7 {[%clk 0:00:05]}  Kd7 {[%clk 0:00:23]} 45. Rb6 {[%clk 0:00:06]}  Ra2 {[%clk 0:00:23]} 46. Rf6 {[%clk 0:00:04]}  Rxb2 {[%clk 0:00:20]} 47. Rxf7+ {[%clk 0:00:04]}  Kd6 {[%clk 0:00:21]} 48. Rf6+ {[%clk 0:00:05]}  Ne6 {[%clk 0:00:21]} 0-1


[Site "https://www.chess.com"]

[Event "Titled Tuesday Blitz May 25 2021"]
[White "Filali, Razzouki Marouane"]
[Black "Tarigan, Gilbert Elroy"]
[WhiteFideId "9003720"]
[BlackFideId "7108133"]
[WhiteElo "2073"]
[BlackElo "1908"]
[Result "0-1"]
[Round "04"]
[TimeControl "180+1"]
[Date "2021.05.25"]
[WhiteClock "0:00:05"]
[BlackClock "0:00:11"]

1. e4 {[%clk 0:03:00]}  c6 {[%clk 0:02:58]} 2. Nf3 {[%clk 0:03:01]}  d5 {[%clk 0:02:58]} 3. Nc3 {[%clk 0:03:00]}  Bg4 {[%clk 0:02:58]} 4. h3 {[%clk 0:03:00]}  Bxf3 {[%clk 0:02:57]} 5. Qxf3 {[%clk 0:03:01]}  e6 {[%clk 0:02:58]} 6. d4 {[%clk 0:03:01]}  Nf6 {[%clk 0:02:56]} 7. Bd3 {[%clk 0:03:00]}  Bb4 {[%clk 0:02:53]} 8. e5 {[%clk 0:03:00]}  Nfd7 {[%clk 0:02:52]} 9. Qg3 {[%clk 0:02:44]}  Bf8 {[%clk 0:02:49]} 10. Ne2 {[%clk 0:02:43]}  c5 {[%clk 0:02:47]} 11. c3 {[%clk 0:02:43]}  Nc6 {[%clk 0:02:48]} 12. O-O {[%clk 0:02:41]}  g6 {[%clk 0:02:45]} 13. Bg5 {[%clk 0:02:39]}  Be7 {[%clk 0:02:42]} 14. Bh6 {[%clk 0:02:39]}  Bf8 {[%clk 0:02:41]} 15. Bg5 {[%clk 0:02:20]}  Be7 {[%clk 0:02:41]} 16. h4 {[%clk 0:02:00]}  Bxg5 {[%clk 0:02:33]} 17. hxg5 {[%clk 0:01:59]}  h6 {[%clk 0:02:31]} 18. gxh6 {[%clk 0:01:00]}  Rxh6 {[%clk 0:02:32]} 19. Qe3 {[%clk 0:00:51]}  Qh4 {[%clk 0:02:28]} 20. f3 {[%clk 0:00:51]}  a6 {[%clk 0:02:00]} 21. a3 {[%clk 0:00:49]}  c4 {[%clk 0:01:48]} 22. Bc2 {[%clk 0:00:48]}  O-O-O {[%clk 0:01:45]} 23. b3 {[%clk 0:00:45]}  cxb3 {[%clk 0:01:44]} 24. Bxb3 {[%clk 0:00:43]}  Na5 {[%clk 0:01:43]} 25. Ba2 {[%clk 0:00:41]}  Nb6 {[%clk 0:01:41]} 26. Rfb1 {[%clk 0:00:26]}  Nbc4 {[%clk 0:01:35]} 27. Bxc4 {[%clk 0:00:25]}  Nxc4 {[%clk 0:01:36]} 28. Qf4 {[%clk 0:00:16]}  Rh7 {[%clk 0:00:51]} 29. Qxh4 {[%clk 0:00:16]}  Rxh4 {[%clk 0:00:52]} 30. Kf2 {[%clk 0:00:17]}  Rdh8 {[%clk 0:00:51]} 31. Ng1 {[%clk 0:00:16]}  g5 {[%clk 0:00:49]} 32. Nh3 {[%clk 0:00:16]}  g4 {[%clk 0:00:49]} 33. Ng5 {[%clk 0:00:13]}  gxf3 {[%clk 0:00:48]} 34. Nxf3 {[%clk 0:00:14]}  Rg4 {[%clk 0:00:47]} 35. Rh1 {[%clk 0:00:14]}  Rhg8 {[%clk 0:00:47]} 36. Rhg1 {[%clk 0:00:07]}  Re4 {[%clk 0:00:43]} 37. Rae1 {[%clk 0:00:06]}  Rxe1 {[%clk 0:00:41]} 38. Rxe1 {[%clk 0:00:07]}  Nxa3 {[%clk 0:00:41]} 39. Rh1 {[%clk 0:00:05]}  Kd7 {[%clk 0:00:37]} 40. Rh7 {[%clk 0:00:05]}  Ke7 {[%clk 0:00:37]} 41. Rh1 {[%clk 0:00:03]}  Nb5 {[%clk 0:00:35]} 42. Rc1 {[%clk 0:00:02]}  Rc8 {[%clk 0:00:35]} 43. Nd2 {[%clk 0:00:01]}  Rxc3 {[%clk 0:00:35]} 44. Rh1 {[%clk 0:00:02]}  Nxd4 {[%clk 0:00:31]} 45. Rh7 {[%clk 0:00:01]}  a5 {[%clk 0:00:22]} 46. g4 {[%clk 0:00:02]}  a4 {[%clk 0:00:18]} 47. g5 {[%clk 0:00:02]}  Kf8 {[%clk 0:00:13]} 48. g6 {[%clk 0:00:01]}  Rc7 {[%clk 0:00:09]} 49. Rh8+ {[%clk 0:00:01]}  Kg7 {[%clk 0:00:09]} 50. Ra8 {[%clk 0:00:01]}  Kxg6 {[%clk 0:00:08]} 51. Ke3 {[%clk 0:00:02]}  Nf5+ {[%clk 0:00:07]} 52. Kd3 {[%clk 0:00:02]}  b5 {[%clk 0:00:07]} 53. Ra5 {[%clk 0:00:02]}  Rb7 {[%clk 0:00:07]} 54. Nf3 {[%clk 0:00:03]}  b4 {[%clk 0:00:07]} 55. Rxa4 {[%clk 0:00:03]}  b3 {[%clk 0:00:08]} 56. Ra1 {[%clk 0:00:03]}  b2 {[%clk 0:00:08]} 57. Rb1 {[%clk 0:00:04]}  f6 {[%clk 0:00:07]} 58. Nd2 {[%clk 0:00:05]}  fxe5 {[%clk 0:00:07]} 59. Re1 {[%clk 0:00:04]}  e4+ {[%clk 0:00:07]} 60. Kc3 {[%clk 0:00:04]}  d4+ {[%clk 0:00:07]} 61. Kc4 {[%clk 0:00:04]}  e3 {[%clk 0:00:08]} 62. Nb1 {[%clk 0:00:04]}  Kf6 {[%clk 0:00:08]} 63. Kd3 {[%clk 0:00:05]}  Ke5 {[%clk 0:00:08]} 64. Na3 {[%clk 0:00:03]}  Kd5 {[%clk 0:00:08]} 65. Nb1 {[%clk 0:00:02]}  e5 {[%clk 0:00:08]} 66. Kc2 {[%clk 0:00:03]}  e4 {[%clk 0:00:09]} 67. Kd1 {[%clk 0:00:02]}  d3 {[%clk 0:00:09]} 68. Rh1 {[%clk 0:00:03]}  e2+ {[%clk 0:00:10]} 69. Kd2 {[%clk 0:00:04]}  Kd4 {[%clk 0:00:10]} 70. Rh4 {[%clk 0:00:04]}  Nxh4 {[%clk 0:00:10]} 71. Nc3 {[%clk 0:00:05]}  Nf3# {[%clk 0:00:11]} 0-1


[Site "https://www.chess.com"]